[Event "85th Tata Steel Challengers 2023"]
[Site "Wijk aan Zee"]
[Date "2023.01.29"]
[Round "13.7"]
[White "Supi, Luis Paulo"]
[Black "Mishra, Abhimanyu"]
[Result "1-0"]
[ECO "D45"]
[WhiteElo "2608"]
[BlackElo "2559"]
[Annotator "TA"]
[PlyCount "147"]
[EventDate "2023.01.10"]
[EventType "tourn"]
[EventCountry "NED"]
[SourceTitle "playchess.com"]
[Source "ChessBase"]
[SourceQuality "1"]
[TimeControl "40/6000+30:30/3000+30:900+30"]

{[%evp 23,147,0,0,0,0,0,0,-12,0,0,0,-14,0,0,39,39,77,39,68,86,65,77,69,64,59,39,69,64,54,70,82,33,38,40,48,30,63,41,28,24,24,31,31,24,77,75,67,66,100,85,77,91,99,93,128,120,112,91,150,144,169,145,212,212,187,194,187,187,196,171,226,102,208,201,243,243,245,243,252,249,245,231,262,246,242,200,221,156,153,0,212,0,173,122,230,85,87,0,201,160,227,226,218,193,195,196,258,258,257,257,257,256,250,257,266,258,266,266,520,527,435,406,1030,1006,29972,29975]} 1. c4 {[%emt 0:00:32]} c6 {[%emt 0:00:13]} 2. Nf3 {[%emt 0:00:21]} d5 {[%emt 0:00:14]} 3. e3 {[%emt 0:00:23]} Nf6 {[%emt 0:00:32]} 4. Nc3 {[%emt 0:00:34]} e6 {[%emt 0:01:31]} 5. d4 {[%emt 0:01:49]} Nbd7 {[%emt 0:02:19]} 6. Be2 {[%emt 0:00:13]} Bd6 {[%emt 0:02:06]} 7. b3 {[%emt 0:00:33]} O-O {[%emt 0:02:52]} 8. Bb2 {[%emt 0:00:20]} b6 {[%emt 0:00:58]} 9. O-O {[%emt 0:00:36]} Bb7 {[%emt 0:00:08]} 10. Qc2 {[%emt 0:02:53]} Qe7 {[%emt 0:01:10]} 11. Rfe1 {[%emt 0:02:36]} Rfe8 {[%emt 0:00:56]} 12. Rad1 {[%emt 0:00:17]} Rad8 {[%emt 0:00:36]} 13. h3 {[%emt 0:00:38] D45: Semi-Slav: 5 e3.} c5 {[%emt 0:09:55]} 14. cxd5 $1 {[%emt 0:01:01][%mdl 4] is recently more successful than 14.Nd2.} exd5 {[%emt 0:00:55]} 15. Ba1 {[%emt 0:00:06] [#] The position is equal.} h6 $146 {[%emt 0:11:37]} ({Predecessor:} 15... Rc8 16. dxc5 Bxc5 17. Rc1 Bb4 18. Red1 Rc5 19. Qb2 Rec8 20. Nb1 Rxc1 21. Rxc1 Rxc1+ 22. Qxc1 {½-½ Faizrakhmanov,R (2469)-Drygalov,A (2501) RUS-chT Rapid 2022 (9.12)}) 16. Qb2 {[%emt 0:10:41]} Qe6 {[%emt 0:05:12]} 17. Bf1 {[%emt 0:17:58]} Nf8 {[%emt 0:11:55]} 18. Bb5 {[%emt 0:13:50]} Re7 {[%emt 0:07:06]} 19. Bd3 {[%emt 0:03:24]} Bb8 {[%emt 0:12:01]} 20. dxc5 {[%emt 0:02:21]} bxc5 {[%emt 0:00:09]} 21. b4 $1 {[%emt 0:00:23]} N8d7 {[%emt 0:07:05][%cal Bf8d7,Bd7c5,Bc5e6][%mdl 32]} 22. bxc5 {[%emt 0:02:00]} Nxc5 {[%emt 0:00:02]} 23. Bb1 {[%emt 0:02:21]} Qb6 {[%emt 0:04:05]} 24. Nd4 {[%emt 0:07:17]} Be5 {[%emt 0:04:51]} 25. Qa3 {[%emt 0:02:26]} Rde8 {[%emt 0:02:25]} 26. Bc2 {[%emt 0:04:19] Rb1 would be deadly.} Bxd4 {[%emt 0:07:05]} 27. Rxd4 {[%emt 0:00:24]} (27. Na4 $16 Qa5 28. Bxd4) 27... Ne6 $1 $14 {[%emt 0:00:08]} 28. Rb4 {[%emt 0:03:03]} Qc5 {[%emt 0:00:30] White must now prevent ...d4.} 29. Ba4 {[%emt 0:03:46] This pair of bishops is nice.} Rc8 {[%emt 0:05:05]} 30. Qb2 {[%emt 0:07:24]} (30. Ne2 {seems wilder.} Ne4 31. Qb2 Ba6 32. Rc1) 30... Bc6 {[%emt 0:01:41]} 31. Bxc6 {[%emt 0:02:39]} Qxc6 {[%emt 0:00:52]} 32. Ne2 {[%emt 0:00:59] And now Rc1 would win.} Rec7 {[%emt 0:02:19]} 33. Rb8 {[%emt 0:06:50]} Qe8 {[%emt 0:01:56]} (33... Rxb8 $11 34. Qxb8+ Rc8 35. Qxa7 Ra8) 34. Rxc8 $16 {[%emt 0:02:41]} Qxc8 {[%emt 0:00:43]} 35. Qb3 {[%emt 0:02:00]} Qb7 {[%emt 0:00:51]} 36. Bxf6 {[%emt 0:04:28]} Qxb3 {[%emt 0:00:13]} 37. axb3 {[%emt 0:00:05]} gxf6 {[%emt 0:00:02][%mdl 4096] Endgame KRN-KRN} 38. Rd1 {[%emt 0:00:34]} Rb7 {[%emt 0:01:15]} 39. Rxd5 {[%emt 0:01:22]} Rxb3 {[%emt 0:00:08]} 40. Ng3 {[%emt 0:00:30]} Ra3 {[%emt 0:05:24]} (40... a6 $142) 41. Nh5 {[%emt 0:52:18]} a5 {[%emt 0:12:35]} 42. Nxf6+ {[%emt 0:00:00]} Kf8 {[%emt 0:03:15]} (42... Kg7 $16 {might work better.}) 43. g4 $1 $18 {[%emt 0:00:00]} a4 {[%emt 0:13:08]} 44. Ra5 {[%emt 0:00:00]} Ra1+ {[%emt 0:02:08]} 45. Kg2 {[%emt 0:00:00]} a3 {[%emt 0:00:18]} 46. Nd5 {[%emt 0:00:00]} Ng5 {[%emt 0:06:04]} (46... Kg7 {was called for.} 47. Nc3 Nc7) 47. Ra8+ {[%emt 0:00:00]} Kg7 {[%emt 0:00:03]} 48. Nc3 $1 {[%emt 0:00:00]} Ne6 {[%emt 0:03:39]} 49. Nb5 $1 {[%emt 0:00:00] Dodges Nc7} a2 {[%emt 0:00:58]} 50. Nc3 {[%emt 0:00:00]} Rc1 {[%emt 0:00:08]} 51. Nxa2 {[%emt 0:00:00]} Ra1 {[%emt 0:00:06]} 52. Ra5 {[%emt 0:00:00] Dodges Nc5} Kh7 {[%emt 0:02:05]} 53. h4 {[%emt 0:00:00]} Kg7 {[%emt 0:00:33]} 54. f4 {[%emt 0:00:00]} Re1 {[%emt 0:03:17]} 55. Ra3 {[%emt 0:00:00]} Ra1 {[%emt 0:00:31]} 56. Ra5 {[%emt 0:00:00] Inhibits Nc5.} (56. g5 $16) 56... Re1 $1 {[%emt 0:00:09]} 57. Ra3 {[%emt 0:00:00]} Ra1 {[%emt 0:00:03]} 58. Kf3 {[%emt 0:00:00]} (58. g5 $18) 58... Rh1 {[%emt 0:02:39]} (58... Nc7 $16 {is a better defense.} 59. Ra5 Rh1) 59. Kg3 {[%emt 0:05:10]} (59. Nc3 $18 {has better winning chances.}) 59... Rg1+ $16 {[%emt 0:00:24]} 60. Kf3 {[%emt 0:00:04]} (60. Kh2 $1 $16 {[%cal Rh2g1]} Rxg4 61. Kh3) 60... Rh1 $18 {[%emt 0:00:06]} 61. Ra5 {[%emt 0:04:48]} Rh3+ {[%emt 0:04:45]} (61... Nf8 $16 62. Nc3 Rh3+ 63. Kf2 Rxh4) 62. Kf2 {[%emt 0:00:11]} Rxh4 {[%emt 0:00:13] [#]} 63. Kg3 $1 {[%emt 0:00:15]} Rh1 {[%emt 0:00:04]} 64. Nc3 {[%emt 0:00:33]} Rg1+ {[%emt 0:00:00]} (64... Rc1 $142) 65. Kf3 {[%emt 0:00:00]} Rf1+ {[%emt 0:00:00] [#]} 66. Kg2 $1 {[%emt 0:00:00]} Rc1 {[%emt 0:00:00]} 67. Ne4 {[%emt 0:00:00]} Rc6 {[%emt 0:00:00]} 68. Kf3 {[%emt 0:00:00]} Nc7 {[%emt 0:00:44]} 69. Ng3 {[%emt 0:00:00]} Ra6 {[%emt 0:00:25]} 70. Rh5 {[%emt 0:00:00]} Rg6 $2 {[%emt 0:06:39]} (70... Kg8 71. Nf5 Ne6 72. Nxh6+ Kf8) 71. Nf5+ {[%emt 0:03:52]} Kh7 {[%emt 0:15:02]} 72. g5 {[%emt 0:00:20]} f6 {[%emt 0:00:06]} (72... Rb6 $142 73. e4 Ra6) 73. Nxh6 {[%emt 0:00:55] Nf5+ would kill now.} fxg5 {[%emt 0:00:53]} 74. Nf5+ {[%emt 0:00:06] Weighted Error Value: White=0.20 (precise) /Black=0.14 (very precise)} 1-0